[Event "Wuerttemberg Rapid Teams 2024"]
[Site "B?blingen, Germany"]
[Date "2024.04.13"]
[Round "6.5"]
[White "Fischer, Andre"]
[Black "Peng, Xiang-Tobias"]
[Result "1/2-1/2"]
[ECO "B90"]
[WhiteElo "2248"]
[BlackElo "2187"]
[Annotator "RC"]
[PlyCount "102"]
[EventDate "2024.04.13"]
[EventType "team-tourn"]
[SourceTitle "playchess.com"]
[Source "ChessBase"]
[SourceQuality "1"]
[TimeControl "900+5"]

1. e4 {[%emt 0:00:01]} c5 {[%emt 0:00:06]} 2. Nf3 {[%emt 0:00:01]} d6 {[%emt 0:00:01]} 3. d4 {[%emt 0:00:01]} cxd4 {[%emt 0:00:00]} 4. Nxd4 {[%emt 0:00:01]} Nf6 {[%emt 0:00:01]} 5. Nc3 {[%emt 0:00:02]} a6 {[%emt 0:00:01]} 6. Rg1 {[%emt 0:00:02]} e5 {[%emt 0:00:42]} 7. Nb3 {[%emt 0:00:03]} Be6 {[%emt 0:00:08]} 8. g4 {[%emt 0:00:04]} d5 {[%emt 0:00:18]} 9. g5 {[%emt 0:00:04]} Nxe4 {[%emt 0:00:02]} 10. Nxe4 {[%emt 0:00:01]} dxe4 {[%emt 0:00:01]} 11. Qxd8+ {[%emt 0:00:01]} Kxd8 {[%emt 0:00:01]} 12. Bg2 {[%emt 0:00:06]} Nd7 {[%emt 0:01:27]} 13. Bxe4 {[%emt 0:00:04]} Kc7 {[%emt 0:00:01]} 14. Be3 {[%emt 0:00:02]} Bb4+ {[%emt 0:00:26]} 15. c3 {[%emt 0:00:08]} Be7 {[%emt 0:00:01]} 16. O-O-O {[%emt 0:00:06]} a5 {[%emt 0:00:40]} 17. f4 {[%emt 0:00:19]} a4 {[%emt 0:00:11]} 18. Nd2 {[%emt 0:00:41]} Bc5 {[%emt 0:00:34]} 19. Bxc5 {[%emt 0:00:29]} Nxc5 {[%emt 0:00:02]} 20. Bb1 {[%emt 0:00:04]} exf4 {[%emt 0:00:17]} 21. Rgf1 {[%emt 0:00:15]} Rhd8 {[%emt 0:00:52]} 22. Rxf4 {[%emt 0:00:20]} Bxa2 {[%emt 0:00:09]} 23. Rf5 {[%emt 0:01:35]} Nb3+ {[%emt 0:00:31]} 24. Nxb3 {[%emt 0:01:29]} Rxd1+ {[%emt 0:00:35]} 25. Kxd1 {[%emt 0:00:01]} Bxb3+ {[%emt 0:00:02]} 26. Bc2 {[%emt 0:00:16]} Rd8+ {[%emt 0:00:25]} 27. Kc1 {[%emt 0:00:01]} Be6 {[%emt 0:00:46]} 28. Re5 {[%emt 0:00:30]} Rd5 {[%emt 0:00:34]} 29. Rxd5 {[%emt 0:00:12]} Bxd5 {[%emt 0:00:01]} 30. Bxa4 {[%emt 0:00:10]} Kd6 {[%emt 0:00:04]} 31. Kd2 {[%emt 0:00:47]} Ke5 {[%emt 0:00:15]} 32. Ke3 {[%emt 0:04:41]} Kf5 {[%emt 0:02:03]} 33. Kd4 {[%emt 0:00:01]} Be6 {[%emt 0:00:01]} 34. b4 {[%emt 0:00:54]} Kxg5 {[%emt 0:00:49]} 35. b5 {[%emt 0:00:01]} Kf6 {[%emt 0:01:42]} 36. b6 {[%emt 0:00:38]} Ke7 {[%emt 0:00:24]} 37. c4 {[%emt 0:00:03]} Bd7 {[%emt 0:00:09]} 38. Bc2 {[%emt 0:00:06]} Bc6 {[%emt 0:00:12]} 39. c5 {[%emt 0:00:13]} g6 {[%emt 0:02:01]} 40. Bd3 {[%emt 0:00:35]} h6 {[%emt 0:00:09]} 41. Bc2 {[%emt 0:00:03]} f5 {[%emt 0:00:58]} 42. Ke5 {[%emt 0:00:05]} Bg2 {[%emt 0:00:25]} 43. Ba4 {[%emt 0:00:11]} Kd8 {[%emt 0:00:10]} 44. h4 {[%emt 0:00:46]} Be4 {[%emt 0:00:04]} 45. Kf6 {[%emt 0:00:23]} g5 {[%emt 0:00:18]} 46. hxg5 {[%emt 0:00:07]} hxg5 {[%emt 0:00:01]} 47. Kxg5 {[%emt 0:00:01]} Bd3 {[%emt 0:00:06]} 48. Bb3 {[%emt 0:00:18]} Kd7 {[%emt 0:00:04]} 49. Bd5 {[%emt 0:00:02]} Be4 {[%emt 0:00:02]} 50. Bxb7 {[%emt 0:01:20]} Bxb7 {[%emt 0:00:01]} 51. Kxf5 {[%emt 0:00:01]} Kc6 {[%emt 0:00:09]} 1/2-1/2

[Event "Wuerttemberg Rapid Teams 2024"]
[Site "B?blingen, Germany"]
[Date "2024.04.13"]
[Round "6.6"]
[White "Weiss, Oliver"]
[Black "Ramirez Marin, Ivan"]
[Result "1-0"]
[ECO "D00"]
[WhiteElo "2220"]
[BlackElo "2271"]
[Annotator "RC"]
[PlyCount "67"]
[EventDate "2024.04.13"]
[EventType "team-tourn"]
[SourceTitle "playchess.com"]
[Source "ChessBase"]
[SourceQuality "1"]
[TimeControl "900+5"]

1. d4 {[%emt 0:00:01]} d5 {[%emt 0:00:00]} 2. Bf4 {[%emt 0:00:02]} c5 {[%emt 0:00:02]} 3. e3 {[%emt 0:00:03]} Nc6 {[%emt 0:00:02]} 4. c3 {[%emt 0:00:05]} Bf5 {[%emt 0:00:02]} 5. Qb3 {[%emt 0:00:31]} Qd7 {[%emt 0:00:02]} 6. Nf3 {[%emt 0:00:14]} e6 {[%emt 0:00:16]} 7. Bb5 {[%emt 0:00:31]} f6 {[%emt 0:00:01]} 8. O-O {[%emt 0:00:36]} c4 {[%emt 0:00:02]} 9. Qa4 {[%emt 0:00:33]} Nge7 {[%emt 0:00:42]} 10. b3 {[%emt 0:00:05]} cxb3 {[%emt 0:02:32]} 11. axb3 {[%emt 0:00:02]} g5 {[%emt 0:00:18]} 12. Bg3 {[%emt 0:00:06]} h5 {[%emt 0:00:07]} 13. h4 {[%emt 0:00:25]} gxh4 {[%emt 0:00:13]} 14. Nxh4 {[%emt 0:00:50]} Kf7 {[%emt 0:00:18]} 15. Nd2 {[%emt 0:00:21]} Bh6 {[%emt 0:00:33]} 16. Be2 {[%emt 0:00:53]} Bg4 {[%emt 0:00:35]} 17. Bd3 {[%emt 0:00:34]} Rag8 {[%emt 0:00:20]} 18. Rae1 {[%emt 0:02:05]} e5 {[%emt 0:02:04]} 19. dxe5 {[%emt 0:01:17]} Nxe5 {[%emt 0:00:32]} 20. Bb5 {[%emt 0:02:13]} N5c6 {[%emt 0:00:01]} 21. Ndf3 {[%emt 0:00:47]} a6 {[%emt 0:00:21]} 22. Bd3 {[%emt 0:00:18]} Be6 {[%emt 0:01:16]} 23. e4 {[%emt 0:00:16]} Rg4 {[%emt 0:00:13]} 24. Qa2 {[%emt 0:01:16]} d4 {[%emt 0:01:41]} 25. cxd4 {[%emt 0:00:03]} Nxd4 {[%emt 0:00:02]} 26. Bc4 {[%emt 0:00:05]} Bxc4 {[%emt 0:00:42]} 27. bxc4 {[%emt 0:00:02]} Nxf3+ {[%emt 0:00:06]} 28. Nxf3 {[%emt 0:00:18]} Kg7 {[%emt 0:02:18]} 29. e5 {[%emt 0:00:10]} Rf8 {[%emt 0:00:24]} 30. exf6+ {[%emt 0:00:10]} Rxf6 {[%emt 0:00:01]} 31. Ne5 {[%emt 0:00:19]} Qd2 {[%emt 0:01:20]} 32. Qxd2 {[%emt 0:00:11]} Bxd2 {[%emt 0:00:02]} 33. Nxg4 {[%emt 0:00:03]} Bxe1 {[%emt 0:00:06]} 34. Nxf6 {[%emt 0:00:17]} 1-0

[Event "Wuerttemberg Rapid Teams 2024"]
[Site "B?blingen, Germany"]
[Date "2024.04.13"]
[Round "6.7"]
[White "Wunder, Niklas"]
[Black "Schnepp, Gunnar"]
[Result "1/2-1/2"]
[ECO "D40"]
[WhiteElo "2071"]
[BlackElo "2233"]
[Annotator "RC"]
[PlyCount "47"]
[EventDate "2024.04.13"]
[EventType "team-tourn"]
[SourceTitle "playchess.com"]
[Source "ChessBase"]
[SourceQuality "1"]
[TimeControl "900+5"]

1. d4 {[%emt 0:00:01]} Nf6 {[%emt 0:00:01]} 2. c4 {[%emt 0:00:01]} e6 {[%emt 0:00:03]} 3. Nf3 {[%emt 0:00:06]} d5 {[%emt 0:00:04]} 4. e3 {[%emt 0:00:06]} c5 {[%emt 0:00:11]} 5. Nc3 {[%emt 0:00:08]} Nc6 {[%emt 0:00:10]} 6. a3 {[%emt 0:00:04]} dxc4 {[%emt 0:00:07]} 7. Bxc4 {[%emt 0:00:02]} a6 {[%emt 0:00:02]} 8. O-O {[%emt 0:00:25]} b5 {[%emt 0:00:04]} 9. Ba2 {[%emt 0:00:03]} Bb7 {[%emt 0:01:05]} 10. Qe2 {[%emt 0:02:16]} cxd4 {[%emt 0:00:31]} 11. Rd1 {[%emt 0:00:18]} b4 {[%emt 0:00:52]} 12. Nxd4 {[%emt 0:00:32]} Nxd4 {[%emt 0:00:48]} 13. Rxd4 {[%emt 0:00:05]} Qb6 {[%emt 0:00:09]} 14. axb4 {[%emt 0:02:41]} Bxb4 {[%emt 0:00:08]} 15. Bd2 {[%emt 0:01:00]} Be7 {[%emt 0:02:11]} 16. Na4 {[%emt 0:01:28]} Qc6 {[%emt 0:00:59]} 17. f3 {[%emt 0:00:02]} O-O {[%emt 0:00:06]} 18. Rc1 {[%emt 0:00:52]} Qb5 {[%emt 0:01:58]} 19. Qe1 {[%emt 0:02:01]} Rac8 {[%emt 0:00:27]} 20. Nc3 {[%emt 0:00:43]} Qb6 {[%emt 0:00:33]} 21. Na4 {[%emt 0:00:49]} Qb5 {[%emt 0:00:58]} 22. Nc3 {[%emt 0:00:06]} Qb6 {[%emt 0:00:01]} 23. Na4 {[%emt 0:00:06]} Qb5 {[%emt 0:00:43]} 24. Nc3 {[%emt 0:00:49]} 1/2-1/2

[Event "Wuerttemberg Rapid Teams 2024"]
[Site "B?blingen, Germany"]
[Date "2024.04.13"]
[Round "6.8"]
[White "Sokratov, Stanislav"]
[Black "Geshnizjani, Ramin"]
[Result "1/2-1/2"]
[ECO "D02"]
[WhiteElo "2146"]
[BlackElo "2137"]
[Annotator "RC"]
[PlyCount "65"]
[EventDate "2024.04.13"]
[EventType "team-tourn"]
[SourceTitle "playchess.com"]
[Source "ChessBase"]
[SourceQuality "1"]
[TimeControl "900+5"]

1. d4 {[%emt 0:00:02]} d5 {[%emt 0:03:06]} 2. Nf3 {[%emt 0:00:02]} Nf6 {[%emt 0:00:03]} 3. Bf4 {[%emt 0:00:03]} e6 {[%emt 0:00:03]} 4. e3 {[%emt 0:00:02]} Bd6 {[%emt 0:00:03]} 5. Nbd2 {[%emt 0:00:01]} Bxf4 {[%emt 0:00:11]} 6. exf4 {[%emt 0:00:01]} O-O {[%emt 0:00:09]} 7. c3 {[%emt 0:00:07]} b6 {[%emt 0:00:10]} 8. h4 {[%emt 0:00:02]} c5 {[%emt 0:00:46]} 9. h5 {[%emt 0:00:08]} h6 {[%emt 0:00:03]} 10. Bd3 {[%emt 0:00:57]} Ba6 {[%emt 0:00:22]} 11. Bxa6 {[%emt 0:00:48]} Nxa6 {[%emt 0:00:02]} 12. Qe2 {[%emt 0:00:05]} Nc7 {[%emt 0:00:17]} 13. O-O-O {[%emt 0:01:13]} Nce8 {[%emt 0:02:26]} 14. Rdg1 {[%emt 0:01:53]} Qd6 {[%emt 0:00:50]} 15. Rh4 {[%emt 0:00:29]} cxd4 {[%emt 0:00:54]} 16. Nxd4 {[%emt 0:00:05]} Rc8 {[%emt 0:00:07]} 17. Qe5 {[%emt 0:01:48]} Nd7 {[%emt 0:00:48]} 18. Qxd6 {[%emt 0:00:19]} Nxd6 {[%emt 0:00:01]} 19. g4 {[%emt 0:02:27]} e5 {[%emt 0:03:17]} 20. fxe5 {[%emt 0:00:01]} Nxe5 {[%emt 0:00:01]} 21. Kc2 {[%emt 0:01:05]} Rfe8 {[%emt 0:00:39]} 22. g5 {[%emt 0:00:23]} hxg5 {[%emt 0:00:31]} 23. Rxg5 {[%emt 0:00:03]} f6 {[%emt 0:00:01]} 24. Rg1 {[%emt 0:00:25]} Kf7 {[%emt 0:00:17]} 25. Rh3 {[%emt 0:02:34]} Rh8 {[%emt 0:00:48]} 26. Nf1 {[%emt 0:00:28]} Nc6 {[%emt 0:01:40]} 27. Rg4 {[%emt 0:00:40]} Ne5 {[%emt 0:00:00]} 28. Rg1 {[%emt 0:00:22]} Nc6 {[%emt 0:00:00]} 29. Rg4 {[%emt 0:00:08]} Ne5 {[%emt 0:00:00]} 30. Rf4 {[%emt 0:00:06]} g6 {[%emt 0:00:00]} 31. hxg6+ {[%emt 0:00:19]} Nxg6 {[%emt 0:00:00]} 32. Rff3 {[%emt 0:00:15]} Rxh3 {[%emt 0:00:00]} 33. Rxh3 {[%emt 0:00:01]} 1/2-1/2

[Event "Wuerttemberg Rapid Teams 2024"]
[Site "B?blingen, Germany"]
[Date "2024.04.13"]
[Round "6.10"]
[White "Namyslo, Holger"]
[Black "Kaufmann, Thorsten"]
[Result "1/2-1/2"]
[ECO "C13"]
[WhiteElo "2125"]
[BlackElo "2057"]
[Annotator "RC"]
[PlyCount "31"]
[EventDate "2024.04.13"]
[EventType "team-tourn"]
[SourceTitle "playchess.com"]
[Source "ChessBase"]
[SourceQuality "1"]
[TimeControl "900+5"]

1. e4 {[%emt 0:00:02]} e6 {[%emt 0:00:01]} 2. d4 {[%emt 0:00:02]} d5 {[%emt 0:00:01]} 3. Nc3 {[%emt 0:00:02]} Nf6 {[%emt 0:00:02]} 4. Bg5 {[%emt 0:00:15]} dxe4 {[%emt 0:00:07]} 5. Nxe4 {[%emt 0:00:10]} Be7 {[%emt 0:00:05]} 6. Bxf6 {[%emt 0:00:04]} Bxf6 {[%emt 0:00:02]} 7. Nf3 {[%emt 0:00:02]} O-O {[%emt 0:00:19]} 8. c3 {[%emt 0:00:41]} b6 {[%emt 0:00:15]} 9. Bd3 {[%emt 0:00:05]} Bb7 {[%emt 0:00:02]} 10. O-O {[%emt 0:00:07]} Nd7 {[%emt 0:00:02]} 11. Re1 {[%emt 0:00:19]} Be7 {[%emt 0:00:13]} 12. Qe2 {[%emt 0:00:54]} c5 {[%emt 0:00:11]} 13. Rad1 {[%emt 0:00:09]} cxd4 {[%emt 0:00:06]} 14. Nxd4 {[%emt 0:00:16]} Nc5 {[%emt 0:00:34]} 15. Nxc5 {[%emt 0:00:17]} Bxc5 {[%emt 0:00:02]} 16. Be4 {[%emt 0:03:15]} 1/2-1/2

[Event "Wuerttemberg Rapid Teams 2024"]
[Site "B?blingen, Germany"]
[Date "2024.04.13"]
[Round "6.11"]
[White "Schulze, Andreas"]
[Black "Albrecht, Neil"]
[Result "1-0"]
[ECO "B05"]
[WhiteElo "2080"]
[BlackElo "1950"]
[Annotator "NA RC"]
[PlyCount "89"]
[EventDate "2024.04.13"]
[EventType "team-tourn"]
[SourceTitle "playchess.com"]
[Source "ChessBase"]
[SourceQuality "1"]
[TimeControl "900+5"]

1. e4 {[%emt 0:00:03]} Nf6 {[%emt 0:00:01]} 2. e5 {[%emt 0:00:01]} Nd5 {[%emt 0:00:01]} 3. c4 {[%emt 0:00:03]} Nb6 {[%emt 0:00:02]} 4. d4 {[%emt 0:00:04]} d6 {[%emt 0:00:01]} 5. Nf3 {[%emt 0:00:03]} Bg4 {[%emt 0:00:10]} 6. exd6 {[%emt 0:00:05]} exd6 {[%emt 0:00:02]} 7. h3 {[%emt 0:00:22]} Bxf3 {[%emt 0:00:03]} 8. Qxf3 {[%emt 0:00:02]} Nc6 {[%emt 0:00:02]} 9. Be3 {[%emt 0:00:31]} Be7 {[%emt 0:00:18]} 10. Be2 {[%emt 0:00:07]} Bf6 {[%emt 0:00:02]} 11. O-O {[%emt 0:00:45]} O-O {[%emt 0:00:17]} 12. Rd1 {[%emt 0:00:16]} Re8 {[%emt 0:00:36]} 13. Nc3 {[%emt 0:00:09]} g6 {[%emt 0:00:15]} 14. Ne4 {[%emt 0:01:06]} Bg7 {[%emt 0:00:03]} 15. Bg5 {[%emt 0:00:35]} Qc8 {[%emt 0:01:16]} 16. Nf6+ {[%emt 0:00:39]} Bxf6 {[%emt 0:00:01]} 17. Bxf6 {[%emt 0:00:09]} Nd7 {[%emt 0:00:01]} 18. Bg5 {[%emt 0:00:29]} f6 {[%emt 0:00:48]} 19. Bh6 {[%emt 0:00:26]} Ne7 {[%emt 0:00:07]} 20. Bd3 {[%emt 0:00:10]} c5 {[%emt 0:00:10]} 21. dxc5 {[%emt 0:00:38]} Qxc5 {[%emt 0:00:13]} 22. Qxb7 {[%emt 0:00:44]} Ne5 {[%emt 0:00:04]} 23. Be3 {[%emt 0:00:18]} Qa5 {[%emt 0:00:24]} 24. Qe4 {[%emt 0:00:34]} Kg7 {[%emt 0:00:36]} 25. Qh4 {[%emt 0:00:44]} Nxd3 {[%emt 0:00:04]} 26. Rxd3 {[%emt 0:00:08]} Nf5 {[%emt 0:00:01]} 27. Qf4 {[%emt 0:00:17]} Rab8 {[%emt 0:00:26]} 28. Bd2 {[%emt 0:00:35]} Qe5 {[%emt 0:02:36]} 29. Qxe5 {[%emt 0:00:10]} dxe5 {[%emt 0:00:01]} 30. Bc3 {[%emt 0:00:15]} Red8 {[%emt 0:00:06]} 31. Rad1 {[%emt 0:00:06]} Rxd3 {[%emt 0:00:07]} 32. Rxd3 {[%emt 0:00:02]} Rb7 {[%emt 0:00:01]} 33. b3 {[%emt 0:00:12]} Kf7 {[%emt 0:00:04]} 34. g3 {[%emt 0:00:36]} Ke7 {[%emt 0:00:41]} 35. Kg2 {[%emt 0:00:06]} h5 {[%emt 0:00:19]} 36. Rd5 {[%emt 0:00:18]} Nd6 {[%emt 0:00:12]} 37. Kf3 {[%emt 0:00:25]} Ke6 {[%emt 0:00:07]} 38. Rd1 {[%emt 0:00:22]} g5 {[%emt 0:00:45]} 39. g4 {[%emt 0:00:16]} hxg4+ {[%emt 0:00:02]} 40. hxg4 {[%emt 0:00:11]} Nf7 {[%emt 0:01:32]} 41. c5 {[%emt 0:00:39]} Nh8 {[%emt 0:00:46]} 42. Rd6+ {[%emt 0:00:14]} Kf7 {[%emt 0:00:30]} 43. c6 {[%emt 0:00:28]} Rc7 {[%emt 0:00:01]} 44. Ba5 {[%emt 0:00:01]} Rc8 {[%emt 0:00:05]} 45. c7 {[%emt 0:00:07]} 1-0

[Event "Wuerttemberg Rapid Teams 2024"]
[Site "B?blingen, Germany"]
[Date "2024.04.13"]
[Round "6.13"]
[White "Zuferi, Enis"]
[Black "Kabisch, Thilo"]
[Result "1-0"]
[ECO "A43"]
[WhiteElo "2406"]
[BlackElo "2228"]
[Annotator "RC"]
[PlyCount "67"]
[EventDate "2024.04.13"]
[EventType "team-tourn"]
[SourceTitle "playchess.com"]
[Source "ChessBase"]
[SourceQuality "1"]
[TimeControl "900+5"]

1. d4 {[%emt 0:00:01]} c5 {[%emt 0:01:32]} 2. d5 {[%emt 0:00:03]} e6 {[%emt 0:00:01]} 3. c4 {[%emt 0:00:10]} exd5 {[%emt 0:00:02]} 4. cxd5 {[%emt 0:00:01]} d6 {[%emt 0:00:01]} 5. Nc3 {[%emt 0:00:01]} a6 {[%emt 0:00:01]} 6. a4 {[%emt 0:00:15]} Ne7 {[%emt 0:00:02]} 7. Nf3 {[%emt 0:00:19]} Ng6 {[%emt 0:00:03]} 8. h4 {[%emt 0:00:11]} Nd7 {[%emt 0:00:12]} 9. h5 {[%emt 0:02:35]} Nge5 {[%emt 0:00:02]} 10. Nxe5 {[%emt 0:00:01]} Nxe5 {[%emt 0:00:02]} 11. h6 {[%emt 0:01:12]} g6 {[%emt 0:00:03]} 12. Bf4 {[%emt 0:00:07]} Nd7 {[%emt 0:00:50]} 13. Ne4 {[%emt 0:01:58]} Nf6 {[%emt 0:00:04]} 14. Ng5 {[%emt 0:00:03]} Be7 {[%emt 0:00:07]} 15. e4 {[%emt 0:01:10]} O-O {[%emt 0:00:11]} 16. Be2 {[%emt 0:00:20]} Nd7 {[%emt 0:00:16]} 17. Qd2 {[%emt 0:00:38]} Qc7 {[%emt 0:00:16]} 18. O-O {[%emt 0:01:00]} Bf6 {[%emt 0:00:06]} 19. Rac1 {[%emt 0:00:17]} a5 {[%emt 0:01:02]} 20. Nf3 {[%emt 0:00:20]} Re8 {[%emt 0:00:08]} 21. Bd3 {[%emt 0:00:54]} b6 {[%emt 0:00:04]} 22. Rfe1 {[%emt 0:00:07]} Ba6 {[%emt 0:00:19]} 23. Bxa6 {[%emt 0:00:19]} Rxa6 {[%emt 0:00:02]} 24. Nd4 {[%emt 0:00:02]} Bxd4 {[%emt 0:00:25]} 25. Qxd4 {[%emt 0:00:01]} cxd4 {[%emt 0:00:02]} 26. Rxc7 {[%emt 0:00:01]} Nc5 {[%emt 0:00:01]} 27. Bxd6 {[%emt 0:00:13]} Nxa4 {[%emt 0:00:18]} 28. Be5 {[%emt 0:01:19]} d3 {[%emt 0:00:56]} 29. d6 {[%emt 0:00:45]} Raa8 {[%emt 0:00:22]} 30. d7 {[%emt 0:00:44]} Reb8 {[%emt 0:00:25]} 31. Rec1 {[%emt 0:01:24]} Nc5 {[%emt 0:00:08]} 32. R7xc5 {[%emt 0:00:07]} bxc5 {[%emt 0:00:01]} 33. Bxb8 {[%emt 0:00:01]} d2 {[%emt 0:00:03]} 34. d8=Q# {[%emt 0:00:02]} 1-0

[Event "Wuerttemberg Rapid Teams 2024"]
[Site "B?blingen, Germany"]
[Date "2024.04.13"]
[Round "6.14"]
[White "Trachtmann, Mark"]
[Black "Huber, Philipp"]
[Result "1-0"]
[ECO "E94"]
[WhiteElo "2203"]
[BlackElo "2306"]
[Annotator "RC"]
[PlyCount "75"]
[EventDate "2024.04.13"]
[EventType "team-tourn"]
[SourceTitle "playchess.com"]
[Source "ChessBase"]
[SourceQuality "1"]
[TimeControl "900+5"]

1. d4 {[%emt 0:00:01]} Nf6 {[%emt 0:00:01]} 2. c4 {[%emt 0:00:03]} d6 {[%emt 0:00:02]} 3. Nf3 {[%emt 0:00:02]} g6 {[%emt 0:00:01]} 4. Nc3 {[%emt 0:00:06]} Bg7 {[%emt 0:00:01]} 5. e4 {[%emt 0:00:05]} O-O {[%emt 0:00:03]} 6. Be2 {[%emt 0:00:04]} Na6 {[%emt 0:00:03]} 7. O-O {[%emt 0:00:21]} e5 {[%emt 0:00:01]} 8. Be3 {[%emt 0:00:09]} Qe7 {[%emt 0:00:02]} 9. dxe5 {[%emt 0:02:49]} dxe5 {[%emt 0:00:03]} 10. Qc2 {[%emt 0:00:51]} c6 {[%emt 0:00:33]} 11. a3 {[%emt 0:00:21]} Ng4 {[%emt 0:00:05]} 12. Bg5 {[%emt 0:00:08]} f6 {[%emt 0:00:05]} 13. Bd2 {[%emt 0:00:18]} Nc5 {[%emt 0:00:18]} 14. h3 {[%emt 0:00:26]} Nh6 {[%emt 0:00:04]} 15. b4 {[%emt 0:00:49]} Ne6 {[%emt 0:00:02]} 16. Be3 {[%emt 0:00:15]} g5 {[%emt 0:00:13]} 17. Rad1 {[%emt 0:01:33]} f5 {[%emt 0:01:01]} 18. exf5 {[%emt 0:01:09]} Nxf5 {[%emt 0:00:02]} 19. Ne4 {[%emt 0:00:25]} Nfd4 {[%emt 0:00:46]} 20. Bxd4 {[%emt 0:00:55]} Nxd4 {[%emt 0:00:03]} 21. Nxd4 {[%emt 0:00:33]} exd4 {[%emt 0:00:01]} 22. Bg4 {[%emt 0:00:52]} Bxg4 {[%emt 0:00:34]} 23. hxg4 {[%emt 0:00:01]} Rf4 {[%emt 0:00:02]} 24. f3 {[%emt 0:00:06]} h5 {[%emt 0:00:51]} 25. Rfe1 {[%emt 0:00:48]} hxg4 {[%emt 0:00:12]} 26. Nf2 {[%emt 0:00:19]} Qf7 {[%emt 0:01:14]} 27. Nxg4 {[%emt 0:00:02]} d3 {[%emt 0:01:47]} 28. Rxd3 {[%emt 0:00:12]} Re8 {[%emt 0:02:08]} 29. Rxe8+ {[%emt 0:00:38]} Qxe8 {[%emt 0:00:01]} 30. Qd2 {[%emt 0:00:15]} Qe6 {[%emt 0:00:13]} 31. Rd8+ {[%emt 0:00:12]} Bf8 {[%emt 0:00:06]} 32. c5 {[%emt 0:00:20]} a5 {[%emt 0:00:13]} 33. Qc3 {[%emt 0:00:17]} axb4 {[%emt 0:00:14]} 34. axb4 {[%emt 0:00:01]} Kf7 {[%emt 0:00:28]} 35. Qh8 {[%emt 0:00:47]} Qe1+ {[%emt 0:00:21]} 36. Kh2 {[%emt 0:00:00]} Bg7 {[%emt 0:00:09]} 37. Rd7+ {[%emt 0:00:05]} Ke6 {[%emt 0:00:13]} 38. Qe8+ {[%emt 0:00:04]} 1-0

[Event "Wuerttemberg Rapid Teams 2024"]
[Site "B?blingen, Germany"]
[Date "2024.04.13"]
[Round "6.15"]
[White "Degenhard, Simon"]
[Black "Krockenberger, Martin"]
[Result "0-1"]
[ECO "B07"]
[WhiteElo "2204"]
[BlackElo "2125"]
[Annotator "RC"]
[PlyCount "108"]
[EventDate "2024.04.13"]
[EventType "team-tourn"]
[SourceTitle "playchess.com"]
[Source "ChessBase"]
[SourceQuality "1"]
[TimeControl "900+5"]

1. e4 {[%emt 0:00:02]} d6 {[%emt 0:01:22]} 2. d4 {[%emt 0:00:02]} Nf6 {[%emt 0:00:01]} 3. Nc3 {[%emt 0:00:00]} g6 {[%emt 0:00:03]} 4. Be3 {[%emt 0:00:02]} Bg7 {[%emt 0:00:06]} 5. Qd2 {[%emt 0:00:04]} O-O {[%emt 0:00:21]} 6. f3 {[%emt 0:00:07]} c6 {[%emt 0:00:51]} 7. Bh6 {[%emt 0:00:07]} e5 {[%emt 0:00:45]} 8. Nge2 {[%emt 0:00:37]} Nxe4 {[%emt 0:00:27]} 9. Nxe4 {[%emt 0:00:45]} Qh4+ {[%emt 0:00:03]} 10. g3 {[%emt 0:00:21]} Qxh6 {[%emt 0:00:02]} 11. Qxh6 {[%emt 0:00:12]} Bxh6 {[%emt 0:00:02]} 12. Nxd6 {[%emt 0:00:03]} Nd7 {[%emt 0:01:51]} 13. dxe5 {[%emt 0:00:35]} Nxe5 {[%emt 0:00:02]} 14. f4 {[%emt 0:00:03]} Ng4 {[%emt 0:01:07]} 15. Nxc8 {[%emt 0:00:08]} Raxc8 {[%emt 0:00:02]} 16. Bh3 {[%emt 0:00:05]} f5 {[%emt 0:00:17]} 17. Bxg4 {[%emt 0:03:04]} fxg4 {[%emt 0:00:02]} 18. O-O {[%emt 0:00:46]} Bg7 {[%emt 0:00:17]} 19. c3 {[%emt 0:00:08]} Rfe8 {[%emt 0:00:39]} 20. Rfe1 {[%emt 0:00:09]} Rcd8 {[%emt 0:00:13]} 21. Nd4 {[%emt 0:02:00]} Bxd4+ {[%emt 0:01:50]} 22. cxd4 {[%emt 0:00:01]} Kf7 {[%emt 0:01:36]} 23. Rxe8 {[%emt 0:00:23]} Rxe8 {[%emt 0:00:01]} 24. Kf2 {[%emt 0:00:05]} Re4 {[%emt 0:00:05]} 25. d5 {[%emt 0:00:52]} cxd5 {[%emt 0:00:05]} 26. Rc1 {[%emt 0:00:01]} Rc4 {[%emt 0:00:07]} 27. Rxc4 {[%emt 0:00:54]} dxc4 {[%emt 0:00:01]} 28. Ke3 {[%emt 0:00:16]} Ke6 {[%emt 0:01:02]} 29. Kd4 {[%emt 0:00:05]} b5 {[%emt 0:02:06]} 30. Kc5 {[%emt 0:00:37]} Kf5 {[%emt 0:00:38]} 31. Kxb5 {[%emt 0:01:16]} Ke4 {[%emt 0:00:02]} 32. Kxc4 {[%emt 0:00:54]} Kf3 {[%emt 0:00:02]} 33. b4 {[%emt 0:00:29]} Kg2 {[%emt 0:00:00]} 34. b5 {[%emt 0:00:01]} Kxh2 {[%emt 0:00:02]} 35. a4 {[%emt 0:00:02]} h5 {[%emt 0:00:52]} 36. a5 {[%emt 0:00:09]} h4 {[%emt 0:00:00]} 37. b6 {[%emt 0:00:22]} axb6 {[%emt 0:00:13]} 38. axb6 {[%emt 0:00:10]} hxg3 {[%emt 0:00:07]} 39. b7 {[%emt 0:00:02]} g2 {[%emt 0:00:04]} 40. b8=Q {[%emt 0:00:05]} g1=Q {[%emt 0:00:10]} 41. f5+ {[%emt 0:00:20]} g3 {[%emt 0:00:03]} 42. Qh8+ {[%emt 0:00:11]} Kg2 {[%emt 0:00:03]} 43. fxg6 {[%emt 0:00:18]} Qf1+ {[%emt 0:00:11]} 44. Kb3 {[%emt 0:01:25]} Qd3+ {[%emt 0:00:05]} 45. Qc3 {[%emt 0:00:19]} Qxg6 {[%emt 0:00:06]} 46. Qd2+ {[%emt 0:00:03]} Kh3 {[%emt 0:00:12]} 47. Qd7+ {[%emt 0:00:01]} Qg4 {[%emt 0:00:07]} 48. Qh7+ {[%emt 0:00:04]} Kg2 {[%emt 0:00:01]} 49. Qc2+ {[%emt 0:00:03]} Kg1 {[%emt 0:00:08]} 50. Qc1+ {[%emt 0:00:07]} Kf2 {[%emt 0:00:09]} 51. Qd2+ {[%emt 0:00:03]} Qe2 {[%emt 0:00:02]} 52. Qd6 {[%emt 0:00:11]} g2 {[%emt 0:00:08]} 53. Qh2 {[%emt 0:00:02]} Qe3+ {[%emt 0:00:11]} 54. Ka4 {[%emt 0:00:11]} Qg3 {[%emt 0:00:04]} 0-1